{"text_format":"1","workbook":"xlsx","n_sheets":3,"sheets":["FIND_F","eisagogi","graph_cuts"],"not_rendered":{"charts":3,"images":0,"macros":1,"external_links":0,"defined_names":11,"comments":0,"pivot_tables":0},"unopened":[{"sheet":"eisagogi","index":1,"reason":"part_missing"}],"bounds":{"document_bytes":16777216,"sheet_cells":100000,"rows_first":2000,"rows_last":500,"rows_between":2000,"halvings":0,"cell_chars":16384,"cell_head_chars":4096},"cells_cut":0,"cells_raw":0,"read":"whole","date_system":"1900"}

{"sheet":"FIND_F","index":0,"n_rows":74,"n_cols":35,"rows_kept":74,"cut":false,"hidden":false,"merged":[]}
["Object","Image",null,null,null,null,null,null,null,null,null,null,null,null,null,null,null,null,"object",{"$f":"AI1","v":11},null,"image","x","y","x²","xy","y²",null,null,null,null,null,null,null,{"$f":"SUM(AI2:AI74)","v":11}]
[20,112.95085005481329,null,null,null,null,null,null,null,null,null,null,null,null,null,null,null,null,20,0,0,112.95085005481329,0.05,8.8534083587216532E-3,2.5000000000000005E-3,4.426704179360827E-4,7.8382839566282431E-5,null,null,null,null,null,null,null,{"$f":"IF(ISNUMBER(A2),1,0)","v":1}]
[30,40.448498361353195,null,null,null,null,null,null,null,null,null,null,null,null,null,null,null,null,30,0,0,40.448498361353195,3.3333333333333333E-2,2.4722796655300736E-2,1.1111111111111111E-3,8.2409322184335784E-4,6.1121667445934919E-4,null,null,null,0,5.8545348044323507E-2,null,null,{"$f":"IF(ISNUMBER(A3),1,0)","v":1}]
[40,28.739878083223218,null,null,null,null,null,null,null,null,null,null,null,null,null,null,null,null,40,0,0,28.739878083223218,2.5000000000000001E-2,3.4794858805742318E-2,6.2500000000000012E-4,8.6987147014355802E-4,1.2106821993115436E-3,null,null,null,5.8737642068651078E-2,0,null,null,1]
[50,26.014894529356962,null,null,null,null,null,null,null,null,null,null,null,null,null,null,null,null,50,0,0,26.014894529356962,0.02,3.8439517749016147E-2,4.0000000000000002E-4,7.6879035498032301E-4,1.4775965247769275E-3,null,null,null,null,null,null,null,1]
[60,25.117423783690064,null,null,null,null,null,null,null,null,null,null,null,null,null,null,null,null,60,0,0,25.117423783690064,1.6666666666666666E-2,3.9813000274707612E-2,2.7777777777777778E-4,6.6355000457846017E-4,1.5850749908738683E-3,null,null,null,null,null,null,null,1]
[70,23.579380432265427,null,null,null,null,null,null,null,null,null,null,null,null,null,null,null,null,70,0,0,23.579380432265427,1.4285714285714285E-2,4.2409935361644419E-2,2.040816326530612E-4,6.0585621945206307E-4,1.7986026173788577E-3,null,null,null,null,null,null,null,1]
[80,21.061050697145578,null,null,null,null,null,null,null,null,null,null,null,null,null,null,null,null,80,0,0,21.061050697145578,1.2500000000000001E-2,4.7481011958037347E-2,1.5625000000000003E-4,5.9351264947546693E-4,2.2544464965592857E-3,{"$f":"NN","v":11},null,null,null,null,null,null,1]
[90,19.601715809291207,null,null,null,null,null,null,null,null,null,null,null,null,null,null,null,null,90,0,0,19.601715809291207,1.1111111111111112E-2,5.1015942161859132E-2,1.2345679012345679E-4,5.6684380179843486E-4,2.6026263546621562E-3,null,null,null,null,null,null,null,1]
[100,20.176341149440162,null,null,null,null,null,null,null,null,null,null,null,null,null,null,null,null,100,0,0,20.176341149440162,0.01,4.956300017893716E-2,1E-4,4.9563000178937165E-4,2.4564909867373251E-3,null,null,null,null,null,null,null,1]
[110,19.997813273942135,null,null,null,null,null,null,null,null,null,null,null,null,null,null,null,null,110,0,0,19.997813273942135,9.0909090909090905E-3,5.0005467412931374E-2,8.2644628099173546E-5,4.5459515829937612E-4,2.5005467711857418E-3,null,null,null,null,null,null,null,1]
[120,20.831922881730772,null,null,null,null,null,null,null,null,null,null,null,null,null,null,null,null,120,0,0,20.831922881730772,8.3333333333333332E-3,4.8003249900516014E-2,6.9444444444444444E-5,4.0002708250430011E-4,2.3043120010113908E-3,null,null,null,null,null,null,null,1]
[null,null,null,null,null,null,null,null,null,null,null,null,null,null,null,null,null,null,null,null,null,null,null,null,null,null,null,null,null,null,null,null,null,null,0]
[null,null,null,null,null,null,null,null,null,null,null,null,null,null,null,null,null,null,null,null,null,null,null,null,null,null,null,null,null,null,null,null,null,null,0]
[null,null,null,null,null,null,null,null,null,null,null,null,null,null,null,null,null,null,null,null,null,null,null,null,null,null,null,null,null,null,null,null,null,null,0]
[null,null,null,null,null,null,null,null,null,null,null,null,null,null,null,null,null,null,null,null,null,null,null,null,null,null,null,null,null,null,null,null,null,null,0]
[null,null,null,null,null,null,null,null,null,null,null,null,null,null,null,null,null,null,null,null,null,null,null,null,null,null,null,null,null,null,null,null,null,null,0]
[null,null,null,null,null,null,null,null,null,null,null,null,null,null,null,null,null,null,null,null,null,null,null,null,null,null,null,null,null,null,null,null,null,null,0]
[null,null,null,null,null,null,null,null,null,null,null,null,null,null,null,null,null,null,null,null,null,null,null,null,null,null,null,null,null,null,null,null,null,null,0]
[null,null,null,null,null,null,null,null,null,null,null,null,null,null,null,null,null,null,null,null,null,null,null,null,null,null,null,null,null,null,null,null,null,null,0]
[null,null,null,null,null,null,null,null,null,null,null,null,null,null,null,null,null,null,null,null,null,null,null,null,null,null,null,null,null,null,null,null,null,null,0]
[null,null,null,null,null,null,null,null,null,null,null,null,null,null,null,null,null,null,null,null,null,null,null,null,null,null,null,null,null,null,null,null,null,null,0]
[null,null,null,null,null,null,null,null,null,null,null,null,null,null,null,null,null,null,null,null,null,null,null,null,null,null,null,null,null,null,null,null,null,null,0]
[null,null,null,null,null,null,null,null,null,null,null,null,null,null,null,null,null,null,null,null,null,null,null,null,null,null,null,null,null,null,null,null,null,null,0]
[null,null,null,null,null,null,null,null,null,null,null,null,null,null,null,null,null,null,null,null,null,null,null,null,null,null,null,null,null,null,null,null,null,null,0]
[null,null,null,null,null,null,null,null,null,null,null,null,null,null,null,null,null,null,null,null,null,null,null,null,null,null,null,null,null,null,null,null,null,null,0]
[null,null,null,null,null,null,null,null,null,null,null,null,null,null,null,null,null,null,null,null,null,null,null,null,null,null,null,null,null,null,null,null,null,null,0]
[null,null,null,null,null,null,null,null,null,null,null,null,null,null,null,null,null,null,null,null,null,null,null,null,null,null,null,null,null,null,null,null,null,null,0]
[null,null,null,null,null,null,null,null,null,null,null,null,null,null,null,null,null,null,null,null,null,null,null,null,null,null,null,null,null,null,null,null,null,null,0]
[null,null,null,null,null,null,null,null,null,null,null,null,null,null,null,null,null,null,null,null,null,null,null,null,null,null,null,null,null,null,null,null,null,null,0]
[null,null,0,0,null,null,null,null,null,null,null,null,null,null,null,null,null,null,null,null,null,null,null,null,null,null,null,null,null,null,null,null,null,null,0]
[null,null,-1.0032845312352057,null,null,null,null,null,null,null,null,null,null,null,null,null,null,null,null,null,null,null,null,null,null,null,null,null,null,null,null,null,null,null,0]
[null,null,null,null,null,null,null,null,null,null,null,null,null,null,null,null,null,null,null,null,null,null,null,null,null,null,null,null,null,null,null,null,null,null,0]
[null,null,null,null,null,null,null,null,null,null,null,null,null,null,null,null,null,null,null,null,null,null,null,null,null,null,null,null,null,null,null,null,null,null,0]
[null,null,null,null,null,null,null,null,null,null,null,null,null,null,null,null,null,null,null,null,null,null,null,null,null,null,null,null,null,null,null,null,null,null,0]
[null,null,null,null,null,null,null,null,null,null,null,null,null,null,null,null,null,null,null,null,null,null,null,null,null,null,null,null,null,null,null,null,null,null,0]
[null,null,null,null,null,null,null,null,null,null,null,null,null,null,null,null,null,null,null,null,null,null,null,null,null,null,null,null,null,null,null,null,null,null,0]
[null,null,null,null,null,null,null,null,null,null,null,null,null,null,null,null,null,null,null,null,null,null,null,null,null,null,null,null,null,null,null,null,null,null,0]
[null,null,null,null,null,null,null,null,null,null,null,null,null,null,null,null,null,null,null,null,null,null,null,null,null,null,null,null,null,null,null,null,null,null,0]
[null,null,null,null,null,null,null,null,null,null,null,null,null,null,null,null,null,null,null,null,null,null,null,null,null,null,null,null,null,null,null,null,null,null,0]
[null,null,null,null,null,null,null,null,null,null,null,null,null,null,null,null,null,null,null,null,null,null,null,null,null,null,null,null,null,null,null,null,null,null,0]
[null,null,null,null,null,null,null,null,null,null,null,null,null,null,null,null,null,null,null,null,null,null,null,null,null,null,null,null,null,null,null,null,null,null,0]
[null,null,null,null,null,null,null,null,null,null,null,null,null,null,null,null,null,null,null,null,null,null,null,null,null,null,null,null,null,null,null,null,null,null,0]
[null,null,null,null,null,null,null,null,null,null,null,null,null,null,null,null,null,null,null,null,null,null,null,null,null,null,null,null,null,null,null,null,null,null,0]
[null,null,null,null,null,null,null,null,null,null,null,null,null,null,null,null,null,null,null,null,null,null,null,null,null,null,null,null,null,null,null,null,null,null,0]
[null,null,null,null,null,null,null,null,null,null,null,null,null,null,null,null,null,null,null,null,null,null,null,null,null,null,null,null,null,null,null,null,null,null,0]
[null,null,null,null,null,null,null,null,null,null,null,null,null,null,null,null,null,null,null,null,null,null,null,null,null,null,null,null,null,null,null,null,null,null,0]
[null,null,null,null,null,null,null,null,null,null,null,null,null,null,null,null,null,null,null,null,null,null,null,null,null,null,null,null,null,null,null,null,null,null,0]
[null,null,null,null,null,null,null,null,null,null,null,null,null,null,null,null,null,null,null,null,null,null,null,null,null,null,null,null,null,null,null,null,null,null,{"$f":"IF(A49<>\"\",1,\"\")","v":""}]
[null,null,null,null,null,null,null,null,null,null,null,null,null,null,null,null,null,null,null,null,null,null,null,null,null,null,null,null,null,null,null,null,null,null,""]
[null,null,null,null,null,null,null,null,null,null,null,null,null,null,null,null,null,null,null,null,null,null,null,null,null,null,null,null,null,null,null,null,null,null,""]
[null,null,null,null,null,null,null,null,null,null,null,null,null,null,null,null,null,null,null,null,null,null,null,null,null,null,null,null,null,null,null,null,null,null,""]
[null,null,null,null,null,null,null,null,null,null,null,null,null,null,null,null,null,null,null,null,null,null,null,null,null,null,null,null,null,null,null,null,null,null,""]
[null,null,null,null,null,null,null,null,null,null,null,null,null,null,null,null,null,null,null,null,null,null,null,null,null,null,null,null,null,null,null,null,null,null,""]
[null,null,null,null,null,null,null,null,null,null,null,null,null,null,null,null,null,null,null,null,null,null,null,null,null,null,null,null,null,null,null,null,null,null,""]
[null,null,null,null,null,null,null,null,null,null,null,null,null,null,null,null,null,null,null,null,null,null,null,null,null,null,null,null,null,null,null,null,null,null,""]
[null,null,null,null,null,null,null,null,null,null,null,null,null,null,null,null,null,null,null,null,null,null,null,null,null,null,null,null,null,null,null,null,null,null,""]
[null,null,null,null,null,null,null,null,null,null,null,null,null,null,null,null,null,null,null,null,null,null,null,null,null,null,null,null,null,null,null,null,null,null,""]
[null,null,null,null,null,null,null,null,null,null,null,null,null,null,null,null,null,null,null,null,null,null,null,null,null,null,null,null,null,null,null,null,null,null,""]
[null,null,null,null,null,null,null,null,null,null,null,null,null,null,null,null,null,null,null,null,null,null,null,null,null,null,null,null,null,null,null,null,null,null,""]
[null,null,null,null,null,null,null,null,null,null,null,null,null,null,null,null,null,null,null,null,null,null,null,null,null,null,null,null,null,null,null,null,null,null,""]
[null,null,null,null,null,null,null,null,null,null,null,null,null,null,null,null,null,null,null,null,null,null,null,null,null,null,null,null,null,null,null,null,null,null,""]
[null,null,null,null,null,null,null,null,null,null,null,null,null,null,null,null,null,null,null,null,null,null,null,null,null,null,null,null,null,null,null,null,null,null,""]
[null,null,null,null,null,null,null,null,null,null,null,null,null,null,null,null,null,null,null,null,null,null,null,null,null,null,null,null,null,null,null,null,null,null,""]
[null,null,null,null,null,null,null,null,null,null,null,null,null,null,null,null,null,null,null,null,null,null,null,null,null,null,null,null,null,null,null,null,null,null,""]
[null,null,null,null,null,null,null,null,null,null,null,null,null,null,null,null,null,null,null,null,null,null,null,null,null,null,null,null,null,null,null,null,null,null,""]
[null,null,null,null,null,null,null,null,null,null,null,null,null,null,null,null,null,null,null,null,null,null,null,null,null,null,null,null,null,null,null,null,null,null,{"$f":"IF(A67<>\"\",1,\"\")","v":""}]
[null,null,null,null,null,null,null,null,null,null,null,null,null,null,null,null,null,null,null,null,null,null,null,null,null,null,null,null,null,null,null,null,null,null,""]
[null,null,null,null,null,null,null,null,null,null,null,null,null,null,null,null,null,null,null,null,null,null,null,null,null,null,null,null,null,null,null,null,null,null,""]
[null,null,null,null,null,null,null,null,null,null,null,null,null,null,null,null,null,null,null,null,null,null,null,null,null,null,null,null,null,null,null,null,null,null,""]
[null,null,null,null,null,null,null,null,null,null,null,null,null,null,null,null,null,null,null,null,null,null,null,null,null,null,null,null,null,null,null,null,null,null,""]
[null,null,null,null,null,null,null,null,null,null,null,null,null,null,null,null,null,null,null,null,null,null,null,null,null,null,null,null,null,null,null,null,null,null,""]
[null,null,null,null,null,null,null,null,null,null,null,null,null,null,null,null,null,null,null,null,null,null,null,null,null,null,null,null,null,null,null,null,null,null,""]
[null,null,null,null,null,null,null,null,null,null,null,null,null,null,null,null,null,null,null,null,null,null,null,null,null,null,null,null,null,null,null,null,null,null,""]

{"sheet":"graph_cuts","index":2,"n_rows":56,"n_cols":17,"rows_kept":56,"cut":false,"hidden":false,"merged":[]}
[{"$f":"STDEV(alfa)","v":5.653431871017184},null,null,null,null,"a points","b points","coordinates of average","average of cuts: 18,01 , 16,85","stdev of a points: 5,65","stdev of b points: 1,88"]
[{"$f":"STDEV(bita)","v":1.8762863288812537},null,null,16.863917227469997,17.711160749975999,0,null,16.8488612584582,null,16.8488612584582,14.972574929576947,null,null,null,null,16.863917227469997,17.711160749975999]
[null,null,null,17.084640648190557,16.464615850106313,2.5554111671371729,20.388305145356476,16.8488612584582,null,16.8488612584582,18.725147587339453,null,null,null,null,17.084640648190557,16.464615850106313]
[null,null,null,16.955687138348139,17.192886277818936,8.8269304421577299,21.422261239942895,16.8488612584582,null,null,null,null,null,null,null,16.955687138348139,17.192886277818936]
[null,null,null,16.797626829555902,18.085538589719437,8.9419935279137555,18.372174029687411,16.8488612584582,null,null,null,null,null,null,null,16.797626829555902,18.085538589719437]
[null,null,null,16.828585129216858,17.910700276571582,12.079952558338221,20.060468988779199,16.8488612584582,null,null,null,null,null,null,null,16.828585129216858,17.910700276571582]
[null,null,null,17.066313439505727,16.568119540110491,13.051489915700378,17.625074562297453,16.8488612584582,null,null,null,null,null,null,null,17.066313439505727,16.568119540110491]
[null,null,null,17.192174382323419,15.857314516112535,13.276202915580198,19.107314157373757,16.8488612584582,null,null,null,null,null,null,null,17.192174382323419,15.857314516112535]
[null,null,null,17.036039720102146,16.73909165715822,13.521592472967574,19.024655104120296,16.8488612584582,null,null,null,null,null,null,null,17.036039720102146,16.73909165715822]
[null,null,null,17.006474027199214,16.906065164450531,13.748720772607854,18.861464113097519,16.8488612584582,null,null,null,null,null,null,null,17.006474027199214,16.906065164450531]
[null,null,null,16.828623302493291,17.91048469137046,14.385586076986902,17.273856226200916,16.8488612584582,null,null,null,null,null,null,null,16.828623302493291,17.91048469137046]
[null,null,null,18.591417093414652,15.382001566745988,14.512736481007774,18.312521155270481,16.8488612584582,null,null,null,null,null,null,null,18.591417093414652,15.382001566745988]
[null,null,null,17.432196315309362,16.944959558200601,14.949505552270493,18.236698325189899,16.8488612584582,null,null,null,null,null,null,null,17.432196315309362,16.944959558200601]
[null,null,null,16.491063416090935,18.213873309262343,16.28859102953993,17.036575074811701,16.8488612584582,null,null,null,null,null,null,null,16.491063416090935,18.213873309262343]
[null,null,null,16.678400637580538,17.96128966604757,16.491063416090935,18.213873309262343,16.8488612584582,null,null,null,null,null,null,null,16.678400637580538,17.96128966604757]
[null,null,null,17.868283601548359,16.356990362105769,16.572442586305975,16.832628596431963,16.8488612584582,null,null,null,null,null,null,null,17.868283601548359,16.356990362105769]
[null,null,null,18.440541948207972,15.585424002201364,16.678400637580538,17.96128966604757,16.8488612584582,null,null,null,null,null,null,null,18.440541948207972,15.585424002201364]
[null,null,null,17.681470501783799,16.608867340762636,16.699450058739288,17.932909083472683,16.8488612584582,null,null,null,null,null,null,null,17.681470501783799,16.608867340762636]
[null,null,null,17.531888969249508,16.810545619882706,16.797626829555902,18.085538589719437,16.8488612584582,null,null,null,null,null,null,null,17.531888969249508,16.810545619882706]
[null,null,null,16.699450058739288,17.932909083472683,16.828585129216858,17.910700276571582,16.8488612584582,null,null,null,null,null,null,null,16.699450058739288,17.932909083472683]
[null,null,null,13.748720772607854,18.861464113097519,16.828623302493291,17.91048469137046,16.8488612584582,null,null,null,null,null,null,null,13.748720772607854,18.861464113097519]
[null,null,null,12.079952558338221,20.060468988779199,16.829865127432207,17.910269111359128,16.8488612584582,null,null,null,null,null,null,null,12.079952558338221,20.060468988779199]
[null,null,null,13.521592472967574,19.024655104120296,16.863917227469997,17.711160749975999,16.8488612584582,null,null,null,null,null,null,null,13.521592472967574,19.024655104120296]
[null,null,null,16.867875531820875,16.620360925535312,16.867875531820875,16.620360925535312,16.8488612584582,null,null,null,null,null,null,null,16.867875531820875,16.620360925535312]
[null,null,null,18.250769464383005,15.626755849938702,16.955687138348139,17.192886277818936,16.8488612584582,null,null,null,null,null,null,null,18.250769464383005,15.626755849938702]
[null,null,null,16.572442586305975,16.832628596431963,17.006474027199214,16.906065164450531,16.8488612584582,null,null,null,null,null,null,null,16.572442586305975,16.832628596431963]
[null,null,null,16.28859102953993,17.036575074811701,17.036039720102146,16.73909165715822,16.8488612584582,null,null,null,null,null,null,null,16.28859102953993,17.036575074811701]
[null,null,null,14.512736481007774,18.312521155270481,17.066313439505727,16.568119540110491,16.8488612584582,null,null,null,null,null,null,null,14.512736481007774,18.312521155270481]
[null,null,null,8.8269304421577299,21.422261239942895,17.084640648190557,16.464615850106313,16.8488612584582,null,null,null,null,null,null,null,8.8269304421577299,21.422261239942895]
["The average is16,85 18,01",null,null,13.276202915580198,19.107314157373757,17.192174382323419,15.857314516112535,16.8488612584582,null,null,null,null,null,null,null,13.276202915580198,19.107314157373757]
[null,null,null,19.273050432874101,15.987167043953017,17.432196315309362,16.944959558200601,16.8488612584582,null,null,null,null,null,null,null,19.273050432874101,15.987167043953017]
[null,null,null,21.200517343391073,14.98431007623453,17.490100516637018,17.795652672094928,16.8488612584582,null,null,null,null,null,null,null,21.200517343391073,14.98431007623453]
[null,null,null,18.329423541672462,16.478134124946532,17.531888969249508,16.810545619882706,16.8488612584582,null,null,null,null,null,null,null,18.329423541672462,16.478134124946532]
[null,null,null,17.775741735008886,16.766213601010065,17.681470501783799,16.608867340762636,16.8488612584582,null,null,null,null,null,null,null,17.775741735008886,16.766213601010065]
[null,null,null,14.949505552270493,18.236698325189899,17.775741735008886,16.766213601010065,16.8488612584582,null,null,null,null,null,null,null,14.949505552270493,18.236698325189899]
[null,null,null,18.808133494303149,17.243892791079602,17.868283601548359,16.356990362105769,16.8488612584582,null,null,null,null,null,null,null,18.808133494303149,17.243892791079602]
[null,null,null,26.109407344079202,14.187406300319612,18.012222464182493,null,16.8488612584582,16.8488612584582,null,null,null,null,null,null,26.109407344079202,14.187406300319612]
[null,null,null,27.464987610640186,13.619928233185956,18.012222464182493,null,0,null,null,null,null,null,null,null,27.464987610640186,13.619928233185956]
[null,null,null,22.784632405286921,15.579235985703578,18.250769464383005,15.626755849938702,null,null,null,null,null,null,null,null,22.784632405286921,15.579235985703578]
[null,null,null,21.617655542567988,16.067760192481451,18.329423541672462,16.478134124946532,null,null,null,null,null,null,null,null,21.617655542567988,16.067760192481451]
[null,null,null,17.490100516637018,17.795652672094928,18.440541948207972,15.585424002201364,null,null,null,null,null,null,null,null,17.490100516637018,17.795652672094928]
[null,null,null,34.22333793350537,12.051307506606801,18.591417093414652,15.382001566745988,null,null,null,null,null,null,null,null,34.22333793350537,12.051307506606801]
[null,null,null,33.41130777945115,12.324838476962745,18.808133494303149,17.243892791079602,null,null,null,null,null,null,null,null,33.41130777945115,12.324838476962745]
[null,null,null,25.191859169374453,15.093545701540641,19.273050432874101,15.987167043953017,null,null,null,null,null,null,null,null,25.191859169374453,15.093545701540641]
[null,null,null,23.099435041583749,15.798375194895339,21.200517343391073,14.98431007623453,null,null,null,null,null,null,null,null,23.099435041583749,15.798375194895339]
[null,null,null,16.829865127432207,17.910269111359128,21.617655542567988,16.067760192481451,null,null,null,null,null,null,null,null,16.829865127432207,17.910269111359128]
[null,null,null,32.097073310269437,12.611074594425792,22.784632405286921,15.579235985703578,null,null,null,null,null,null,null,null,32.097073310269437,12.611074594425792]
[null,null,null,14.385586076986902,17.273856226200916,23.099435041583749,15.798375194895339,null,null,null,null,null,null,null,null,14.385586076986902,17.273856226200916]
[null,null,null,13.051489915700378,17.625074562297453,25.191859169374453,15.093545701540641,null,null,null,null,null,null,null,null,13.051489915700378,17.625074562297453]
[null,null,null,2.5554111671371729,20.388305145356476,26.109407344079202,14.187406300319612,null,null,null,null,null,null,null,null,2.5554111671371729,20.388305145356476]
[null,null,null,-35.839200368515343,27.40738048102325,27.464987610640186,13.619928233185956,null,null,null,null,null,null,null,null,8.9419935279137555,18.372174029687411]
[null,null,null,-11.003153640831707,21.998167927886222,32.097073310269437,12.611074594425792]
[null,null,null,-27.83432299508063,25.66394346588665,33.41130777945115,12.324838476962745]
[null,null,null,8.9419935279137555,18.372174029687411,34.22333793350537,12.051307506606801]
[null,null,null,-23.277250103167447,24.87283854046364]
[null,null,null,-101.73377102525946,38.492840152279669]